[Event "*** SCC Grand Prix: Titled Tuesday Blitz"]
[Site "Chess.com"]
[Date "2020.08.25"]
[Round "7"]
[White "DenLaz"]
[Black "CHESSMASTER759"]
[Result "0-1"]
[WhiteElo "2697"]
[BlackElo "2551"]
[TimeControl "180+1"]
[EndTime "11:20:03 PDT"]
[Termination "CHESSMASTER759 won on time"]

1. e4 {[%clk 0:03:00.8]} 1... d5 {[%clk 0:02:56.6]} 2. exd5 {[%clk 0:02:58.8]}
2... Qxd5 {[%clk 0:02:57.5]} 3. Nc3 {[%clk 0:02:59.2]} 3... Qa5 {[%clk
0:02:57.2]} 4. g3 {[%clk 0:02:57.7]} 4... Nf6 {[%clk 0:02:57.3]} 5. Bg2 {[%clk
0:02:58.2]} 5... c6 {[%clk 0:02:56.3]} 6. Nge2 {[%clk 0:02:58.4]} 6... Bg4
{[%clk 0:02:55.2]} 7. O-O {[%clk 0:02:58]} 7... e6 {[%clk 0:02:54]} 8. h3 {[%clk
0:02:58]} 8... Bh5 {[%clk 0:02:52.7]} 9. d3 {[%clk 0:02:55.3]} 9... Nbd7 {[%clk
0:02:52.1]} 10. Rb1 {[%clk 0:02:53.9]} 10... h6 {[%clk 0:02:47.5]} 11. Qe1
{[%clk 0:02:47.3]} 11... Bg6 {[%clk 0:02:41.3]} 12. Bd2 {[%clk 0:02:45.1]} 12...
Qc7 {[%clk 0:02:38.2]} 13. b4 {[%clk 0:02:44.1]} 13... a6 {[%clk 0:02:35.7]} 14.
a4 {[%clk 0:02:43.6]} 14... Bd6 {[%clk 0:02:33.5]} 15. b5 {[%clk 0:02:42.8]}
15... axb5 {[%clk 0:02:32.1]} 16. axb5 {[%clk 0:02:42.4]} 16... O-O {[%clk
0:02:33]} 17. bxc6 {[%clk 0:02:36.2]} 17... bxc6 {[%clk 0:02:32.7]} 18. Nd4
{[%clk 0:02:36.6]} 18... Nd5 {[%clk 0:02:29.6]} 19. Ne4 {[%clk 0:02:21.6]} 19...
Bxe4 {[%clk 0:02:08.1]} 20. Qxe4 {[%clk 0:02:18.5]} 20... Ra2 {[%clk 0:02:04.9]}
21. Rfd1 {[%clk 0:02:05.1]} 21... N7f6 {[%clk 0:01:57.9]} 22. Qf3 {[%clk
0:02:03.2]} 22... Nd7 {[%clk 0:01:55]} 23. h4 {[%clk 0:01:33.3]} 23... Ne5
{[%clk 0:01:51.4]} 24. Qe2 {[%clk 0:01:28.2]} 24... Nd7 {[%clk 0:01:48.6]} 25.
Qe1 {[%clk 0:01:23.2]} 25... Be7 {[%clk 0:01:44.6]} 26. c4 {[%clk 0:01:21]}
26... Bf6 {[%clk 0:01:39.2]} 27. cxd5 {[%clk 0:01:03.3]} 27... Bxd4 {[%clk
0:01:35.9]} 28. dxe6 {[%clk 0:01:03.9]} 28... Ne5 {[%clk 0:01:26.9]} 29. Be3
{[%clk 0:00:58]} 29... Bxe3 {[%clk 0:01:22.7]} 30. Qxe3 {[%clk 0:00:58.9]} 30...
Ng4 {[%clk 0:01:22.8]} 31. Qd4 {[%clk 0:00:14.4]} 31... h5 {[%clk 0:01:18.8]}
32. Rb2 {[%clk 0:00:08]} 32... Rxb2 {[%clk 0:01:15]} 33. Qxb2 {[%clk 0:00:08.9]}
33... fxe6 {[%clk 0:01:15.4]} 34. Rf1 {[%clk 0:00:09]} 34... c5 {[%clk
0:01:10.3]} 35. Qb3 {[%clk 0:00:06.7]} 35... Qd6 {[%clk 0:01:10.2]} 36. Be4
{[%clk 0:00:06.8]} 36... g5 {[%clk 0:00:43.3]} 37. hxg5 {[%clk 0:00:05.3]} 37...
h4 {[%clk 0:00:41.3]} 38. Qd1 {[%clk 0:00:05.1]} 38... Nxf2 {[%clk 0:00:38.9]}
39. Rxf2 {[%clk 0:00:04.3]} 39... Qd4 {[%clk 0:00:36.6]} 40. Qe1 {[%clk
0:00:01.7]} 40... hxg3 {[%clk 0:00:35.6]} 41. Kg2 {[%clk 0:00:02.3]} 41... Qxf2+
{[%clk 0:00:28.2]} 42. Qxf2 {[%clk 0:00:02.6]} 42... gxf2 {[%clk 0:00:28.8]} 43.
Kf1 {[%clk 0:00:02.2]} 43... Rf4 {[%clk 0:00:28.4]} 44. g6 {[%clk 0:00:01.7]}
44... Kg7 {[%clk 0:00:27.6]} 0-1

[Event "*** SCC Grand Prix: Titled Tuesday Blitz"]
[Site "Chess.com"]
[Date "2020.08.25"]
[Round "7"]
[White "alexrustemov"]
[Black "rynos0411"]
[Result "1-0"]
[WhiteElo "2639"]
[BlackElo "2427"]
[TimeControl "180+1"]
[EndTime "11:20:04 PDT"]
[Termination "alexrustemov won by resignation"]

1. c4 {[%clk 0:03:00.9]} 1... Nf6 {[%clk 0:02:57.5]} 2. Nc3 {[%clk 0:03:01]}
2... c6 {[%clk 0:02:43.5]} 3. d4 {[%clk 0:02:59.5]} 3... d5 {[%clk 0:02:43.6]}
4. e3 {[%clk 0:02:58.8]} 4... e6 {[%clk 0:02:42.6]} 5. Nf3 {[%clk 0:02:58.5]}
5... Bd6 {[%clk 0:02:42.7]} 6. Qc2 {[%clk 0:02:57.2]} 6... O-O {[%clk
0:02:42.1]} 7. Bd2 {[%clk 0:02:54.3]} 7... Nbd7 {[%clk 0:02:42]} 8. O-O-O {[%clk
0:02:53.4]} 8... e5 {[%clk 0:02:35.4]} 9. cxd5 {[%clk 0:02:52.7]} 9... cxd5
{[%clk 0:02:35.3]} 10. Nb5 {[%clk 0:02:52.6]} 10... Bb8 {[%clk 0:02:35.2]} 11.
dxe5 {[%clk 0:02:52.6]} 11... Nxe5 {[%clk 0:02:35.4]} 12. Nxe5 {[%clk
0:02:53.5]} 12... Bxe5 {[%clk 0:02:35.5]} 13. Bc3 {[%clk 0:02:54.2]} 13... Qe7
{[%clk 0:02:28]} 14. Kb1 {[%clk 0:02:49.1]} 14... Bxc3 {[%clk 0:02:14.7]} 15.
Nxc3 {[%clk 0:02:47.3]} 15... Be6 {[%clk 0:02:14.7]} 16. Be2 {[%clk 0:02:43.1]}
16... Rac8 {[%clk 0:02:12.7]} 17. Bf3 {[%clk 0:02:40.7]} 17... b5 {[%clk
0:02:12.3]} 18. Qd3 {[%clk 0:02:17.5]} 18... Rfd8 {[%clk 0:01:41.1]} 19. Rc1
{[%clk 0:02:09.4]} 19... b4 {[%clk 0:01:39.3]} 20. Ne2 {[%clk 0:02:08.6]} 20...
Ne4 {[%clk 0:01:32.1]} 21. Rxc8 {[%clk 0:02:04.4]} 21... Rxc8 {[%clk 0:01:30.4]}
22. Bxe4 {[%clk 0:01:40.8]} 22... dxe4 {[%clk 0:01:29.3]} 23. Qd2 {[%clk
0:01:41.2]} 23... Bc4 {[%clk 0:01:25.6]} 24. Nd4 {[%clk 0:01:33.1]} 24... Bd3+
{[%clk 0:01:24.6]} 25. Ka1 {[%clk 0:01:32.5]} 25... Qc5 {[%clk 0:01:22.3]} 26.
b3 {[%clk 0:01:24.1]} 26... a5 {[%clk 0:01:21]} 27. Kb2 {[%clk 0:01:23.5]} 27...
a4 {[%clk 0:01:14.9]} 28. bxa4 {[%clk 0:01:23.1]} 28... Qc3+ {[%clk 0:00:58.3]}
29. Qxc3 {[%clk 0:01:22.7]} 29... bxc3+ {[%clk 0:00:59.2]} 30. Kb3 {[%clk
0:01:21.8]} 30... c2 {[%clk 0:00:54.6]} 31. Rc1 {[%clk 0:01:20.5]} 31... Rb8+
{[%clk 0:00:48.6]} 32. Kc3 {[%clk 0:01:15.9]} 32... Ra8 {[%clk 0:00:46.6]} 33.
Nxc2 {[%clk 0:01:04.1]} 33... Rxa4 {[%clk 0:00:44.5]} 34. Kb2 {[%clk 0:01:00.2]}
34... Bxc2 {[%clk 0:00:30.9]} 35. Rxc2 {[%clk 0:00:59.7]} 35... f5 {[%clk
0:00:30.9]} 36. Kb3 {[%clk 0:00:53.5]} 36... Ra7 {[%clk 0:00:30.3]} 37. a4
{[%clk 0:00:53]} 37... Kf7 {[%clk 0:00:29.2]} 38. Ra2 {[%clk 0:00:51.2]} 38...
Ke6 {[%clk 0:00:28.9]} 39. a5 {[%clk 0:00:46.9]} 39... Kd5 {[%clk 0:00:27.7]}
40. a6 {[%clk 0:00:42.1]} 40... g5 {[%clk 0:00:23.2]} 41. Kb4 {[%clk 0:00:40.6]}
41... Kc6 {[%clk 0:00:20]} 42. g3 {[%clk 0:00:35.4]} 42... h5 {[%clk 0:00:18.7]}
43. Kc4 {[%clk 0:00:34.6]} 43... h4 {[%clk 0:00:18]} 44. gxh4 {[%clk 0:00:34.5]}
44... gxh4 {[%clk 0:00:18.4]} 45. Kd4 {[%clk 0:00:35.2]} 45... Kd6 {[%clk
0:00:18]} 46. h3 {[%clk 0:00:34.9]} 46... Ke6 {[%clk 0:00:14.7]} 47. Kc5 {[%clk
0:00:34.7]} 47... Ke5 {[%clk 0:00:05.8]} 48. Kb6 {[%clk 0:00:34.1]} 48... Rh7
{[%clk 0:00:05.4]} 49. a7 {[%clk 0:00:33.6]} 49... Rh6+ {[%clk 0:00:06.3]} 50.
Kc5 {[%clk 0:00:32.8]} 50... Rh8 {[%clk 0:00:04.7]} 51. a8=Q {[%clk 0:00:32.4]}
1-0

[Event "*** SCC Grand Prix: Titled Tuesday Blitz"]
[Site "Chess.com"]
[Date "2020.08.25"]
[Round "7"]
[White "DishonorOnYourCow"]
[Black "Schandenfreude"]
[Result "0-1"]
[WhiteElo "2354"]
[BlackElo "2504"]
[TimeControl "180+1"]
[EndTime "11:20:04 PDT"]
[Termination "Schandenfreude won on time"]

1. d4 {[%clk 0:03:00.9]} 1... Nf6 {[%clk 0:02:56.4]} 2. c4 {[%clk 0:02:59.5]}
2... e6 {[%clk 0:02:55.5]} 3. Nf3 {[%clk 0:02:58]} 3... b6 {[%clk 0:02:55.1]} 4.
g3 {[%clk 0:02:57.7]} 4... Ba6 {[%clk 0:02:46.3]} 5. Qc2 {[%clk 0:02:55.3]} 5...
Bb4+ {[%clk 0:02:36.3]} 6. Bd2 {[%clk 0:02:54.7]} 6... Bxd2+ {[%clk 0:02:17.5]}
7. Nbxd2 {[%clk 0:02:55.6]} 7... c5 {[%clk 0:02:10.5]} 8. Bg2 {[%clk 0:02:53]}
8... Bb7 {[%clk 0:02:06.8]} 9. O-O {[%clk 0:02:52.8]} 9... cxd4 {[%clk
0:02:06.4]} 10. Nxd4 {[%clk 0:02:53.7]} 10... Bxg2 {[%clk 0:02:05.9]} 11. Kxg2
{[%clk 0:02:54.6]} 11... a6 {[%clk 0:01:53.2]} 12. e4 {[%clk 0:02:48.3]} 12...
Qc7 {[%clk 0:01:49.8]} 13. b3 {[%clk 0:02:39.5]} 13... O-O {[%clk 0:01:48.4]}
14. Qd3 {[%clk 0:02:30.8]} 14... d6 {[%clk 0:01:45.1]} 15. Rac1 {[%clk
0:02:27.6]} 15... Nbd7 {[%clk 0:01:44.1]} 16. Rfd1 {[%clk 0:02:17.3]} 16... Rfd8
{[%clk 0:01:43.5]} 17. Qe2 {[%clk 0:02:16.2]} 17... Rab8 {[%clk 0:01:41.4]} 18.
b4 {[%clk 0:02:06.9]} 18... Ne5 {[%clk 0:01:35.3]} 19. a3 {[%clk 0:02:02.9]}
19... Qb7 {[%clk 0:01:32.9]} 20. f3 {[%clk 0:01:25.1]} 20... Rbc8 {[%clk
0:01:32.3]} 21. a4 {[%clk 0:01:21.7]} 21... Re8 {[%clk 0:01:19.6]} 22. b5 {[%clk
0:00:55.5]} 22... a5 {[%clk 0:01:11.3]} 23. f4 {[%clk 0:00:50.8]} 23... Ned7
{[%clk 0:01:06.8]} 24. Nc6 {[%clk 0:00:34.1]} 24... Nc5 {[%clk 0:00:57.3]} 25.
Qf3 {[%clk 0:00:18.1]} 25... e5 {[%clk 0:00:40.2]} 26. fxe5 {[%clk 0:00:18]}
26... dxe5 {[%clk 0:00:40.5]} 27. Rf1 {[%clk 0:00:16.3]} 27... Rxc6 {[%clk
0:00:37.8]} 28. bxc6 {[%clk 0:00:15.9]} 28... Qxc6 {[%clk 0:00:38.7]} 29. Rcd1
{[%clk 0:00:11.1]} 29... Ne6 {[%clk 0:00:29.3]} 30. Nb3 {[%clk 0:00:08.5]} 30...
Qxa4 {[%clk 0:00:27.6]} 31. Rd6 {[%clk 0:00:06.7]} 31... Qxc4 {[%clk 0:00:23.6]}
32. Rxb6 {[%clk 0:00:05.1]} 32... a4 {[%clk 0:00:22.4]} 33. Na5 {[%clk
0:00:04.4]} 33... Qc5 {[%clk 0:00:16.1]} 34. Ra6 {[%clk 0:00:04.6]} 34... Qb5
{[%clk 0:00:14.9]} 35. Ra7 {[%clk 0:00:04.4]} 35... Nd4 {[%clk 0:00:14.1]} 36.
Qf2 {[%clk 0:00:02.4]} 36... Qb6 {[%clk 0:00:10.7]} 37. Nc4 {[%clk 0:00:01.1]}
37... Qxa7 {[%clk 0:00:09.5]} 38. Rb1 {[%clk 0:00:01.1]} 38... Nxe4 {[%clk
0:00:07.4]} 39. Qe3 {[%clk 0:00:01.4]} 39... Nf6 {[%clk 0:00:07.5]} 0-1

[Event "*** SCC Grand Prix: Titled Tuesday Blitz"]
[Site "Chess.com"]
[Date "2020.08.25"]
[Round "7"]
[White "XiaoKangZhong"]
[Black "QuintilianoR"]
[Result "0-1"]
[WhiteElo "2417"]
[BlackElo "2607"]
[TimeControl "180+1"]
[EndTime "11:20:06 PDT"]
[Termination "QuintilianoR won by resignation"]

1. e4 {[%clk 0:02:59.2]} 1... c5 {[%clk 0:02:59.7]} 2. c3 {[%clk 0:02:58.3]}
2... Nf6 {[%clk 0:02:59]} 3. e5 {[%clk 0:02:57.8]} 3... Nd5 {[%clk 0:02:59.1]}
4. d4 {[%clk 0:02:58.5]} 4... cxd4 {[%clk 0:03:00]} 5. Nf3 {[%clk 0:02:55.2]}
5... e6 {[%clk 0:03:00]} 6. cxd4 {[%clk 0:02:49]} 6... d6 {[%clk 0:02:59.9]} 7.
Bc4 {[%clk 0:02:48.5]} 7... Nc6 {[%clk 0:02:59.6]} 8. Bxd5 {[%clk 0:02:44.7]}
8... exd5 {[%clk 0:02:58.9]} 9. O-O {[%clk 0:02:44.2]} 9... Be7 {[%clk
0:02:57.2]} 10. Nc3 {[%clk 0:02:35]} 10... Be6 {[%clk 0:02:50]} 11. Re1 {[%clk
0:02:27]} 11... O-O {[%clk 0:02:48.2]} 12. Nb5 {[%clk 0:02:21.9]} 12... dxe5
{[%clk 0:02:30.5]} 13. dxe5 {[%clk 0:02:19.9]} 13... Bg4 {[%clk 0:02:27.1]} 14.
Bf4 {[%clk 0:01:52.5]} 14... Bb4 {[%clk 0:01:01.4]} 15. Re3 {[%clk 0:01:35.2]}
15... Bc5 {[%clk 0:00:59.6]} 16. Rb3 {[%clk 0:01:21]} 16... Qe7 {[%clk
0:00:33.7]} 17. Qxd5 {[%clk 0:01:10]} 17... Be6 {[%clk 0:00:31.7]} 18. Qe4
{[%clk 0:00:57.9]} 18... Bxb3 {[%clk 0:00:30.3]} 19. axb3 {[%clk 0:00:58.4]}
19... a6 {[%clk 0:00:26.1]} 20. Nc3 {[%clk 0:00:56.7]} 20... Rad8 {[%clk
0:00:18.2]} 21. Bg5 {[%clk 0:00:31.8]} 21... f6 {[%clk 0:00:15.4]} 22. Qc4+
{[%clk 0:00:31.9]} 22... Kh8 {[%clk 0:00:14.5]} 23. exf6 {[%clk 0:00:16.9]}
23... gxf6 {[%clk 0:00:15.4]} 24. Bh6 {[%clk 0:00:16.8]} 24... Rfe8 {[%clk
0:00:13.9]} 25. Nd5 {[%clk 0:00:15.4]} 25... Qe6 {[%clk 0:00:13.7]} 26. Rd1
{[%clk 0:00:09.9]} 26... Bf8 {[%clk 0:00:10.1]} 27. Bxf8 {[%clk 0:00:04.6]}
27... Rxf8 {[%clk 0:00:11]} 28. Nc3 {[%clk 0:00:04.1]} 28... Rxd1+ {[%clk
0:00:09.7]} 29. Nxd1 {[%clk 0:00:05]} 29... Qxc4 {[%clk 0:00:10.2]} 30. bxc4
{[%clk 0:00:05.9]} 30... Na5 {[%clk 0:00:10.7]} 31. Ne3 {[%clk 0:00:05.7]} 31...
Rd8 {[%clk 0:00:10.8]} 32. Kf1 {[%clk 0:00:06]} 32... Rd3 {[%clk 0:00:09.1]} 33.
Ke2 {[%clk 0:00:04.9]} 33... Rb3 {[%clk 0:00:09.5]} 34. Nd5 {[%clk 0:00:05]}
34... Rxb2+ {[%clk 0:00:09.6]} 35. Ke1 {[%clk 0:00:05.5]} 35... Nxc4 {[%clk
0:00:10]} 36. Nxf6 {[%clk 0:00:05.7]} 36... a5 {[%clk 0:00:08.6]} 37. Nd5 {[%clk
0:00:01.6]} 37... a4 {[%clk 0:00:08.1]} 38. Nc3 {[%clk 0:00:02.1]} 38... a3
{[%clk 0:00:08.1]} 39. Ne5 {[%clk 0:00:02.1]} 39... a2 {[%clk 0:00:07.8]} 40.
Nxa2 {[%clk 0:00:02.1]} 40... Nxe5 {[%clk 0:00:07.8]} 0-1

[Event "*** SCC Grand Prix: Titled Tuesday Blitz"]
[Site "Chess.com"]
[Date "2020.08.25"]
[Round "7"]
[White "guillembaches"]
[Black "Spalir"]
[Result "1/2-1/2"]
[WhiteElo "2420"]
[BlackElo "2580"]
[TimeControl "180+1"]
[EndTime "11:20:06 PDT"]
[Termination "Game drawn - insufficient material"]

1. e4 {[%clk 0:03:00.9]} 1... e6 {[%clk 0:03:00.2]} 2. Nf3 {[%clk 0:03:01]} 2...
d5 {[%clk 0:03:00.4]} 3. exd5 {[%clk 0:03:01.9]} 3... exd5 {[%clk 0:03:00.4]} 4.
d4 {[%clk 0:03:02.5]} 4... Nf6 {[%clk 0:03:00.8]} 5. Bd3 {[%clk 0:03:02.6]} 5...
Bd6 {[%clk 0:03:00.7]} 6. O-O {[%clk 0:03:02.7]} 6... O-O {[%clk 0:03:01.3]} 7.
h3 {[%clk 0:03:03.2]} 7... h6 {[%clk 0:03:01.1]} 8. c4 {[%clk 0:03:03.6]} 8...
dxc4 {[%clk 0:03:00.7]} 9. Bxc4 {[%clk 0:03:04.5]} 9... Nc6 {[%clk 0:03:00.3]}
10. Nc3 {[%clk 0:03:01.9]} 10... Bf5 {[%clk 0:03:00.1]} 11. Re1 {[%clk
0:02:57.8]} 11... a6 {[%clk 0:03:00]} 12. d5 {[%clk 0:02:52.2]} 12... Ne7 {[%clk
0:02:56.5]} 13. Nd4 {[%clk 0:02:51.3]} 13... Bg6 {[%clk 0:02:55.6]} 14. Qf3
{[%clk 0:02:48.2]} 14... Qd7 {[%clk 0:02:52.6]} 15. Bxh6 {[%clk 0:02:43.4]}
15... Bh5 {[%clk 0:02:33.2]} 16. g4 {[%clk 0:02:25.9]} 16... Nxg4 {[%clk
0:02:32.2]} 17. hxg4 {[%clk 0:02:26]} 17... Bxg4 {[%clk 0:02:33.1]} 18. Qg2
{[%clk 0:02:13.7]} 18... gxh6 {[%clk 0:02:24.6]} 19. f3 {[%clk 0:02:01.2]} 19...
Kh8 {[%clk 0:02:02.1]} 20. fxg4 {[%clk 0:01:57.5]} 20... Rg8 {[%clk 0:02:02.1]}
21. Be2 {[%clk 0:01:51.6]} 21... Bc5 {[%clk 0:01:59.1]} 22. Rad1 {[%clk
0:01:50.7]} 22... Nf5 {[%clk 0:01:59.2]} 23. Qe4 {[%clk 0:01:28.9]} 23... Rae8
{[%clk 0:01:46.8]} 24. Qf4 {[%clk 0:01:24.3]} 24... Rg5 {[%clk 0:01:37.7]} 25.
Kh1 {[%clk 0:01:07.3]} 25... Nxd4 {[%clk 0:01:31.8]} 26. Rxd4 {[%clk 0:00:58]}
26... Bxd4 {[%clk 0:01:12.7]} 27. Qxd4+ {[%clk 0:00:57.6]} 27... Kg8 {[%clk
0:01:13.1]} 28. Rf1 {[%clk 0:00:50.5]} 28... c6 {[%clk 0:00:56.2]} 29. Bf3
{[%clk 0:00:49.1]} 29... h5 {[%clk 0:00:49]} 30. Ne4 {[%clk 0:00:45.4]} 30...
Rxe4 {[%clk 0:00:38.4]} 31. Qxe4 {[%clk 0:00:41.3]} 31... cxd5 {[%clk
0:00:38.5]} 32. Qf4 {[%clk 0:00:39.1]} 32... Rg6 {[%clk 0:00:34.9]} 33. Rg1
{[%clk 0:00:28.5]} 33... hxg4 {[%clk 0:00:31.2]} 34. Rxg4 {[%clk 0:00:27.4]}
34... Qb5 {[%clk 0:00:20.5]} 35. Rxg6+ {[%clk 0:00:20.3]} 35... fxg6 {[%clk
0:00:21.4]} 36. Kg2 {[%clk 0:00:14.7]} 36... Qxb2+ {[%clk 0:00:20.6]} 37. Kg3
{[%clk 0:00:15]} 37... Qxa2 {[%clk 0:00:19.9]} 38. Qb8+ {[%clk 0:00:13.7]} 38...
Kg7 {[%clk 0:00:17.6]} 39. Qxb7+ {[%clk 0:00:13.7]} 39... Kh6 {[%clk 0:00:18.3]}
40. Qxd5 {[%clk 0:00:13.8]} 40... Qxd5 {[%clk 0:00:18.4]} 41. Bxd5 {[%clk
0:00:13.4]} 41... Kg5 {[%clk 0:00:19.3]} 42. Ba2 {[%clk 0:00:12.8]} 42... a5
{[%clk 0:00:20.2]} 43. Bb3 {[%clk 0:00:12.9]} 43... Kf6 {[%clk 0:00:20.6]} 44.
Ba2 {[%clk 0:00:13.2]} 44... Ke5 {[%clk 0:00:21.2]} 45. Bb3 {[%clk 0:00:13.4]}
45... Kd4 {[%clk 0:00:21.7]} 46. Kg4 {[%clk 0:00:13.6]} 46... Kc3 {[%clk
0:00:22.6]} 47. Bf7 {[%clk 0:00:13.7]} 47... a4 {[%clk 0:00:23]} 48. Kg5 {[%clk
0:00:13.8]} 48... a3 {[%clk 0:00:23.9]} 49. Kxg6 {[%clk 0:00:14]} 49... Kb2
{[%clk 0:00:24.8]} 50. Be6 {[%clk 0:00:14]} 50... Kb1 {[%clk 0:00:25.3]} 51. Bb3
{[%clk 0:00:14]} 51... a2 {[%clk 0:00:26.2]} 52. Bxa2+ {[%clk 0:00:14.3]}
1/2-1/2

[Event "*** SCC Grand Prix: Titled Tuesday Blitz"]
[Site "Chess.com"]
[Date "2020.08.25"]
[Round "7"]
[White "djano"]
[Black "Paladin61"]
[Result "0-1"]
[WhiteElo "2470"]
[BlackElo "2680"]
[TimeControl "180+1"]
[EndTime "11:20:08 PDT"]
[Termination "Paladin61 won on time"]

1. d4 {[%clk 0:03:00.9]} 1... Nf6 {[%clk 0:02:59.4]} 2. Nf3 {[%clk 0:03:01]}
2... g6 {[%clk 0:02:59.6]} 3. Bg5 {[%clk 0:03:01.1]} 3... Bg7 {[%clk 0:02:59.8]}
4. c3 {[%clk 0:03:01.1]} 4... O-O {[%clk 0:02:59.1]} 5. Nbd2 {[%clk 0:03:01.3]}
5... d6 {[%clk 0:02:57.7]} 6. e4 {[%clk 0:03:00.6]} 6... c5 {[%clk 0:02:57.8]}
7. dxc5 {[%clk 0:02:59.6]} 7... dxc5 {[%clk 0:02:58.7]} 8. Qc2 {[%clk 0:02:50]}
8... Nc6 {[%clk 0:02:56.9]} 9. Bc4 {[%clk 0:02:43.3]} 9... Qc7 {[%clk
0:02:34.6]} 10. O-O {[%clk 0:02:40.4]} 10... b6 {[%clk 0:02:23.5]} 11. Rfe1
{[%clk 0:02:38.1]} 11... Nh5 {[%clk 0:02:15.5]} 12. a4 {[%clk 0:02:23.2]} 12...
Bb7 {[%clk 0:02:13.7]} 13. Nf1 {[%clk 0:02:15.9]} 13... Na5 {[%clk 0:02:01.5]}
14. Bd5 {[%clk 0:02:03.7]} 14... h6 {[%clk 0:01:52.7]} 15. Bh4 {[%clk
0:01:56.4]} 15... Rad8 {[%clk 0:01:45.7]} 16. Ne3 {[%clk 0:01:46]} 16... g5
{[%clk 0:01:40.3]} 17. Bg3 {[%clk 0:01:41.3]} 17... Nxg3 {[%clk 0:01:40.2]} 18.
hxg3 {[%clk 0:01:42.2]} 18... e6 {[%clk 0:01:40.4]} 19. Bxb7 {[%clk 0:01:39.8]}
19... Qxb7 {[%clk 0:01:36.2]} 20. e5 {[%clk 0:01:37.2]} 20... Qe7 {[%clk
0:01:15.2]} 21. Ng4 {[%clk 0:01:27]} 21... Rd7 {[%clk 0:00:59.8]} 22. Rad1
{[%clk 0:01:23.4]} 22... Rfd8 {[%clk 0:00:59.8]} 23. Rxd7 {[%clk 0:01:23]} 23...
Qxd7 {[%clk 0:00:59.8]} 24. Kh2 {[%clk 0:00:29.7]} 24... Qd3 {[%clk 0:00:52.8]}
25. Re2 {[%clk 0:00:18.2]} 25... Nb3 {[%clk 0:00:42.1]} 26. Ne3 {[%clk
0:00:14.6]} 26... c4 {[%clk 0:00:24.5]} 27. g4 {[%clk 0:00:11.7]} 27... Kf8
{[%clk 0:00:21.3]} 28. g3 {[%clk 0:00:10.5]} 28... Ke7 {[%clk 0:00:21]} 29. Kg2
{[%clk 0:00:10.9]} 29... a6 {[%clk 0:00:19.5]} 30. Qxd3 {[%clk 0:00:11.3]} 30...
cxd3 {[%clk 0:00:18.5]} 31. Re1 {[%clk 0:00:11.8]} 31... b5 {[%clk 0:00:17.1]}
32. axb5 {[%clk 0:00:10.5]} 32... axb5 {[%clk 0:00:18]} 33. Rd1 {[%clk
0:00:11.3]} 33... Nc5 {[%clk 0:00:15.2]} 34. Nd4 {[%clk 0:00:09.3]} 34... Ke8
{[%clk 0:00:13.9]} 35. b4 {[%clk 0:00:06.4]} 35... Ne4 {[%clk 0:00:09]} 36. Nxb5
{[%clk 0:00:05.7]} 36... Bxe5 {[%clk 0:00:07.5]} 37. c4 {[%clk 0:00:02.3]} 37...
d2 {[%clk 0:00:07.1]} 38. c5 {[%clk 0:00:01.7]} 38... Rb8 {[%clk 0:00:06.5]} 0-1

[Event "*** SCC Grand Prix: Titled Tuesday Blitz"]
[Site "Chess.com"]
[Date "2020.08.25"]
[Round "7"]
[White "TwentyHoursADay"]
[Black "serena-maria"]
[Result "1-0"]
[WhiteElo "2486"]
[BlackElo "2299"]
[TimeControl "180+1"]
[EndTime "11:20:10 PDT"]
[Termination "TwentyHoursADay won by checkmate"]

1. b4 {[%clk 0:02:59.4]} 1... e5 {[%clk 0:02:58.1]} 2. a3 {[%clk 0:02:59.1]}
2... f5 {[%clk 0:02:54.2]} 3. Bb2 {[%clk 0:02:58.5]} 3... d6 {[%clk 0:02:52.6]}
4. e3 {[%clk 0:02:59]} 4... Nf6 {[%clk 0:02:51.9]} 5. c4 {[%clk 0:02:59.3]} 5...
g5 {[%clk 0:02:46.1]} 6. Nc3 {[%clk 0:02:58.4]} 6... Bg7 {[%clk 0:02:45.6]} 7.
Qc2 {[%clk 0:02:57.7]} 7... O-O {[%clk 0:02:44.9]} 8. Nge2 {[%clk 0:02:49.5]}
8... Nc6 {[%clk 0:02:40]} 9. h4 {[%clk 0:02:38.8]} 9... g4 {[%clk 0:02:37.9]}
10. h5 {[%clk 0:02:38.2]} 10... h6 {[%clk 0:02:28.6]} 11. O-O-O {[%clk
0:02:33.3]} 11... Be6 {[%clk 0:02:28.5]} 12. Ng3 {[%clk 0:02:31.8]} 12... Ne7
{[%clk 0:02:22.2]} 13. f4 {[%clk 0:02:22.7]} 13... a5 {[%clk 0:01:46.4]} 14. b5
{[%clk 0:02:19.2]} 14... c6 {[%clk 0:01:45.3]} 15. d4 {[%clk 0:02:05.3]} 15...
e4 {[%clk 0:01:26]} 16. Kb1 {[%clk 0:01:51.4]} 16... Qe8 {[%clk 0:01:22.5]} 17.
Qa4 {[%clk 0:01:23]} 17... Qf7 {[%clk 0:01:10.1]} 18. Be2 {[%clk 0:01:20.2]}
18... Rfc8 {[%clk 0:00:57.7]} 19. Rc1 {[%clk 0:01:20.3]} 19... Nd7 {[%clk
0:00:47.7]} 20. d5 {[%clk 0:00:58.9]} 20... cxd5 {[%clk 0:00:39.2]} 21. cxd5
{[%clk 0:00:57.4]} 21... Nxd5 {[%clk 0:00:36.2]} 22. Nxd5 {[%clk 0:00:53.6]}
22... Nc5 {[%clk 0:00:26.4]} 23. Rxc5 {[%clk 0:00:42]} 23... Rxc5 {[%clk
0:00:19.5]} 24. Bxg7 {[%clk 0:00:21.6]} 24... Qxg7 {[%clk 0:00:12.2]} 25. Nb6
{[%clk 0:00:21.8]} 25... Rd8 {[%clk 0:00:08.6]} 26. Qd4 {[%clk 0:00:20.5]} 26...
Qxd4 {[%clk 0:00:07.7]} 27. exd4 {[%clk 0:00:21.4]} 27... Rc3 {[%clk 0:00:07.9]}
28. Nf1 {[%clk 0:00:20.5]} 28... Rxa3 {[%clk 0:00:06.4]} 29. Nd2 {[%clk
0:00:20.9]} 29... Re3 {[%clk 0:00:05.4]} 30. Bc4 {[%clk 0:00:20]} 30... Bxc4
{[%clk 0:00:05.2]} 31. Ndxc4 {[%clk 0:00:18.3]} 31... Rc3 {[%clk 0:00:04.7]} 32.
Kb2 {[%clk 0:00:18.1]} 32... Rd3 {[%clk 0:00:05]} 33. d5 {[%clk 0:00:16.5]}
33... e3 {[%clk 0:00:04.3]} 34. Re1 {[%clk 0:00:16.5]} 34... Re8 {[%clk
0:00:03.9]} 35. Kc2 {[%clk 0:00:16.5]} 35... Rd4 {[%clk 0:00:03.5]} 36. Kc3
{[%clk 0:00:16.9]} 36... Rxf4 {[%clk 0:00:03.7]} 37. Nxd6 {[%clk 0:00:17.1]}
37... Rd8 {[%clk 0:00:03.4]} 38. Nbc4 {[%clk 0:00:15.7]} 38... Rf2 {[%clk
0:00:03.5]} 39. Rxe3 {[%clk 0:00:15.8]} 39... Rxg2 {[%clk 0:00:04.1]} 40. Re6
{[%clk 0:00:16]} 40... g3 {[%clk 0:00:04.1]} 41. Rg6+ {[%clk 0:00:16.3]} 41...
Kh7 {[%clk 0:00:04.4]} 42. Nxf5 {[%clk 0:00:13.4]} 42... Rg1 {[%clk 0:00:04.2]}
43. Ne5 {[%clk 0:00:12.1]} 43... Rxd5 {[%clk 0:00:03.7]} 44. Rg7+ {[%clk
0:00:11.5]} 44... Kh8 {[%clk 0:00:03.9]} 45. Ng6# {[%clk 0:00:11.8]} 1-0